{"text_format":"2","workbook":"xlsx","n_sheets":3,"sheets":["Sheet1","Sheet2","Sheet3"],"not_rendered":{"charts":0,"images":0,"macros":0,"external_links":0,"defined_names":0,"comments":0,"pivot_tables":0},"unopened":[],"bounds":{"document_bytes":16777216,"sheet_cells":100000,"run_cost":"one","rows_first":2000,"rows_last":500,"rows_between":2000,"halvings":0,"cell_chars":16384,"cell_head_chars":4096},"cells_cut":0,"cells_raw":0,"read":"whole","date_system":"1900"}

{"sheet":"Sheet1","index":0,"n_rows":12,"n_cols":21,"rows_kept":12,"cut":false,"hidden":false,"merged":[[0,0,0,2],[0,3,0,19],[1,6,1,19],[10,0,10,2],[1,0,2,0],[3,0,9,0],[3,1,9,1],[1,3,2,3],[1,4,2,4],[1,5,2,5],[1,20,2,20],[1,1,2,2]]}
["单位：万元",null,null,"2018年      单位日常养护计划完成情况汇总表",{"$nulls":16},"表1-1"]
["序\n号","道路名称",null,"设计里程\n(Km)","管养里程\n(Km)","计划\n费用","完成费用",{"$nulls":13},"完成\n比例"]
[{"$nulls":6},"清扫\n保洁","巡查\n检查","路基","路面","桥梁","涵洞\n通道","隧道","交安\n设施","沿线\n设施","绿化","养护车\n辆设备","应急\n保通","合计","费用/\n公里"]
[1,"高管中心","中心机关",{"$nulls":15},{"$f":"SUM(G4:R4)","v":0}]
[null,null,"机场及宁高高速",{"$nulls":15},0,{"$f":"S5/E5","v":{"$error":"#DIV/0!"}}]
[null,null,"宁通启高速",{"$nulls":15},0,{"$error":"#DIV/0!"}]
[null,null,"宁连、宁洛及金马高速",{"$nulls":15},0,{"$error":"#DIV/0!"}]
[null,null,"宁连一级公路",{"$nulls":15},0,{"$error":"#DIV/0!"}]
[null,null,"崇启大桥",{"$nulls":15},0,{"$error":"#DIV/0!"}]
[null,null,"小计",{"$f":"SUM(D4:D9)","v":0},{"$f":"SUM(E4:E9)","v":0},{"$nulls":13},0,{"$error":"#DIV/0!"}]
["累计",null,null,{"$f":"IF(ISNUMBER(D4),D4,0)+IF(ISNUMBER(D5),D5,0)+IF(ISNUMBER(D6),D6,0)+IF(ISNUMBER(D7),D7,0)+IF(ISNUMBER(D8),D8,0)+IF(ISNUMBER(D9),D9,0)+IF(ISNUMBER(#REF!),#REF!,0)+IF(ISNUMBER(#REF!),#REF!,0)+IF(ISNUMBER(#REF!),#REF!,0)+IF(ISNUMBER(#REF!),#REF!,0)+IF(ISNUMBER(#REF!),#REF!,0)+IF(ISNUMBER(#REF!),#REF!,0)+IF(ISNUMBER(#REF!),#REF!,0)+IF(ISNUMBER(#REF!),#REF!,0)+IF(ISNUMBER(#REF!),#REF!,0)+IF(ISNUMBER(#REF!),#REF!,0)+IF(ISNUMBER(#REF!),#REF!,0)+IF(ISNUMBER(#REF!),#REF!,0)+IF(ISNUMBER(#REF!),#REF!,0)+IF(ISNUMBER(#REF!),#REF!,0)+IF(ISNUMBER(#REF!),#REF!,0)+IF(ISNUMBER(#REF!),#REF!,0)+IF(ISNUMBER(#REF!),#REF!,0)+IF(ISNUMBER(#REF!),#REF!,0)+IF(ISNUMBER(#REF!),#REF!,0)+IF(ISNUMBER(#REF!),#REF!,0)+IF(ISNUMBER(#REF!),#REF!,0)+IF(ISNUMBER(#REF!),#REF!,0)+IF(ISNUMBER(#REF!),#REF!,0)+IF(ISNUMBER(#REF!),#REF!,0)+IF(ISNUMBER(#REF!),#REF!,0)+IF(ISNUMBER(#REF!),#REF!,0)+IF(ISNUMBER(#REF!),#REF!,0)+IF(ISNUMBER(#REF!),#REF!,0)+IF(ISNUMBER(#REF!),#REF!,0)+IF(ISNUMBER(#REF!),#REF!,0)+IF(ISNUMBER(#REF!),#REF!,0)+IF(ISNUMBER(#REF!),#REF!,0)+IF(ISNUMBER(#REF!),#REF!,0)+IF(ISNUMBER(#REF!),#REF!,0)+IF(ISNUMBER(#REF!),#REF!,0)+IF(ISNUMBER(#REF!),#REF!,0)+IF(ISNUMBER(#REF!),#REF!,0)+IF(ISNUMBER(#REF!),#REF!,0)+IF(ISNUMBER(#REF!),#REF!,0)+IF(ISNUMBER(#REF!),#REF!,0)+IF(ISNUMBER(#REF!),#REF!,0)","v":0},{"$f":"IF(ISNUMBER(E4),E4,0)+IF(ISNUMBER(E5),E5,0)+IF(ISNUMBER(E6),E6,0)+IF(ISNUMBER(E7),E7,0)+IF(ISNUMBER(E8),E8,0)+IF(ISNUMBER(E9),E9,0)+IF(ISNUMBER(#REF!),#REF!,0)+IF(ISNUMBER(#REF!),#REF!,0)+IF(ISNUMBER(#REF!),#REF!,0)+IF(ISNUMBER(#REF!),#REF!,0)+IF(ISNUMBER(#REF!),#REF!,0)+IF(ISNUMBER(#REF!),#REF!,0)+IF(ISNUMBER(#REF!),#REF!,0)+IF(ISNUMBER(#REF!),#REF!,0)+IF(ISNUMBER(#REF!),#REF!,0)+IF(ISNUMBER(#REF!),#REF!,0)+IF(ISNUMBER(#REF!),#REF!,0)+IF(ISNUMBER(#REF!),#REF!,0)+IF(ISNUMBER(#REF!),#REF!,0)+IF(ISNUMBER(#REF!),#REF!,0)+IF(ISNUMBER(#REF!),#REF!,0)+IF(ISNUMBER(#REF!),#REF!,0)+IF(ISNUMBER(#REF!),#REF!,0)+IF(ISNUMBER(#REF!),#REF!,0)+IF(ISNUMBER(#REF!),#REF!,0)+IF(ISNUMBER(#REF!),#REF!,0)+IF(ISNUMBER(#REF!),#REF!,0)+IF(ISNUMBER(#REF!),#REF!,0)+IF(ISNUMBER(#REF!),#REF!,0)+IF(ISNUMBER(#REF!),#REF!,0)+IF(ISNUMBER(#REF!),#REF!,0)+IF(ISNUMBER(#REF!),#REF!,0)+IF(ISNUMBER(#REF!),#REF!,0)+IF(ISNUMBER(#REF!),#REF!,0)+IF(ISNUMBER(#REF!),#REF!,0)+IF(ISNUMBER(#REF!),#REF!,0)+IF(ISNUMBER(#REF!),#REF!,0)+IF(ISNUMBER(#REF!),#REF!,0)+IF(ISNUMBER(#REF!),#REF!,0)+IF(ISNUMBER(#REF!),#REF!,0)+IF(ISNUMBER(#REF!),#REF!,0)+IF(ISNUMBER(#REF!),#REF!,0)+IF(ISNUMBER(#REF!),#REF!,0)+IF(ISNUMBER(#REF!),#REF!,0)+IF(ISNUMBER(#REF!),#REF!,0)+IF(ISNUMBER(#REF!),#REF!,0)+IF(ISNUMBER(#REF!),#REF!,0)","v":0},{"$f":"IF(ISNUMBER(F4),F4,0)+IF(ISNUMBER(F5),F5,0)+IF(ISNUMBER(F6),F6,0)+IF(ISNUMBER(F7),F7,0)+IF(ISNUMBER(F8),F8,0)+IF(ISNUMBER(F9),F9,0)+IF(ISNUMBER(#REF!),#REF!,0)+IF(ISNUMBER(#REF!),#REF!,0)+IF(ISNUMBER(#REF!),#REF!,0)+IF(ISNUMBER(#REF!),#REF!,0)+IF(ISNUMBER(#REF!),#REF!,0)+IF(ISNUMBER(#REF!),#REF!,0)+IF(ISNUMBER(#REF!),#REF!,0)+IF(ISNUMBER(#REF!),#REF!,0)+IF(ISNUMBER(#REF!),#REF!,0)+IF(ISNUMBER(#REF!),#REF!,0)+IF(ISNUMBER(#REF!),#REF!,0)+IF(ISNUMBER(#REF!),#REF!,0)+IF(ISNUMBER(#REF!),#REF!,0)+IF(ISNUMBER(#REF!),#REF!,0)+IF(ISNUMBER(#REF!),#REF!,0)+IF(ISNUMBER(#REF!),#REF!,0)+IF(ISNUMBER(#REF!),#REF!,0)+IF(ISNUMBER(#REF!),#REF!,0)+IF(ISNUMBER(#REF!),#REF!,0)+IF(ISNUMBER(#REF!),#REF!,0)+IF(ISNUMBER(#REF!),#REF!,0)+IF(ISNUMBER(#REF!),#REF!,0)+IF(ISNUMBER(#REF!),#REF!,0)+IF(ISNUMBER(#REF!),#REF!,0)+IF(ISNUMBER(#REF!),#REF!,0)+IF(ISNUMBER(#REF!),#REF!,0)+IF(ISNUMBER(#REF!),#REF!,0)+IF(ISNUMBER(#REF!),#REF!,0)+IF(ISNUMBER(#REF!),#REF!,0)+IF(ISNUMBER(#REF!),#REF!,0)+IF(ISNUMBER(#REF!),#REF!,0)+IF(ISNUMBER(#REF!),#REF!,0)+IF(ISNUMBER(#REF!),#REF!,0)+IF(ISNUMBER(#REF!),#REF!,0)+IF(ISNUMBER(#REF!),#REF!,0)+IF(ISNUMBER(#REF!),#REF!,0)+IF(ISNUMBER(#REF!),#REF!,0)+IF(ISNUMBER(#REF!),#REF!,0)+IF(ISNUMBER(#REF!),#REF!,0)+IF(ISNUMBER(#REF!),#REF!,0)+IF(ISNUMBER(#REF!),#REF!,0)","v":0},{"$f":"IF(ISNUMBER(G4),G4,0)+IF(ISNUMBER(G5),G5,0)+IF(ISNUMBER(G6),G6,0)+IF(ISNUMBER(G7),G7,0)+IF(ISNUMBER(G8),G8,0)+IF(ISNUMBER(G9),G9,0)+IF(ISNUMBER(#REF!),#REF!,0)+IF(ISNUMBER(#REF!),#REF!,0)+IF(ISNUMBER(#REF!),#REF!,0)+IF(ISNUMBER(#REF!),#REF!,0)+IF(ISNUMBER(#REF!),#REF!,0)+IF(ISNUMBER(#REF!),#REF!,0)+IF(ISNUMBER(#REF!),#REF!,0)+IF(ISNUMBER(#REF!),#REF!,0)+IF(ISNUMBER(#REF!),#REF!,0)+IF(ISNUMBER(#REF!),#REF!,0)+IF(ISNUMBER(#REF!),#REF!,0)+IF(ISNUMBER(#REF!),#REF!,0)+IF(ISNUMBER(#REF!),#REF!,0)+IF(ISNUMBER(#REF!),#REF!,0)+IF(ISNUMBER(#REF!),#REF!,0)+IF(ISNUMBER(#REF!),#REF!,0)+IF(ISNUMBER(#REF!),#REF!,0)+IF(ISNUMBER(#REF!),#REF!,0)+IF(ISNUMBER(#REF!),#REF!,0)+IF(ISNUMBER(#REF!),#REF!,0)+IF(ISNUMBER(#REF!),#REF!,0)+IF(ISNUMBER(#REF!),#REF!,0)+IF(ISNUMBER(#REF!),#REF!,0)+IF(ISNUMBER(#REF!),#REF!,0)+IF(ISNUMBER(#REF!),#REF!,0)+IF(ISNUMBER(#REF!),#REF!,0)+IF(ISNUMBER(#REF!),#REF!,0)+IF(ISNUMBER(#REF!),#REF!,0)+IF(ISNUMBER(#REF!),#REF!,0)+IF(ISNUMBER(#REF!),#REF!,0)+IF(ISNUMBER(#REF!),#REF!,0)+IF(ISNUMBER(#REF!),#REF!,0)+IF(ISNUMBER(#REF!),#REF!,0)+IF(ISNUMBER(#REF!),#REF!,0)+IF(ISNUMBER(#REF!),#REF!,0)+IF(ISNUMBER(#REF!),#REF!,0)+IF(ISNUMBER(#REF!),#REF!,0)+IF(ISNUMBER(#REF!),#REF!,0)+IF(ISNUMBER(#REF!),#REF!,0)+IF(ISNUMBER(#REF!),#REF!,0)+IF(ISNUMBER(#REF!),#REF!,0)","v":0},{"$f":"IF(ISNUMBER(H4),H4,0)+IF(ISNUMBER(H5),H5,0)+IF(ISNUMBER(H6),H6,0)+IF(ISNUMBER(H7),H7,0)+IF(ISNUMBER(H8),H8,0)+IF(ISNUMBER(H9),H9,0)+IF(ISNUMBER(#REF!),#REF!,0)+IF(ISNUMBER(#REF!),#REF!,0)+IF(ISNUMBER(#REF!),#REF!,0)+IF(ISNUMBER(#REF!),#REF!,0)+IF(ISNUMBER(#REF!),#REF!,0)+IF(ISNUMBER(#REF!),#REF!,0)+IF(ISNUMBER(#REF!),#REF!,0)+IF(ISNUMBER(#REF!),#REF!,0)+IF(ISNUMBER(#REF!),#REF!,0)+IF(ISNUMBER(#REF!),#REF!,0)+IF(ISNUMBER(#REF!),#REF!,0)+IF(ISNUMBER(#REF!),#REF!,0)+IF(ISNUMBER(#REF!),#REF!,0)+IF(ISNUMBER(#REF!),#REF!,0)+IF(ISNUMBER(#REF!),#REF!,0)+IF(ISNUMBER(#REF!),#REF!,0)+IF(ISNUMBER(#REF!),#REF!,0)+IF(ISNUMBER(#REF!),#REF!,0)+IF(ISNUMBER(#REF!),#REF!,0)+IF(ISNUMBER(#REF!),#REF!,0)+IF(ISNUMBER(#REF!),#REF!,0)+IF(ISNUMBER(#REF!),#REF!,0)+IF(ISNUMBER(#REF!),#REF!,0)+IF(ISNUMBER(#REF!),#REF!,0)+IF(ISNUMBER(#REF!),#REF!,0)+IF(ISNUMBER(#REF!),#REF!,0)+IF(ISNUMBER(#REF!),#REF!,0)+IF(ISNUMBER(#REF!),#REF!,0)+IF(ISNUMBER(#REF!),#REF!,0)+IF(ISNUMBER(#REF!),#REF!,0)+IF(ISNUMBER(#REF!),#REF!,0)+IF(ISNUMBER(#REF!),#REF!,0)+IF(ISNUMBER(#REF!),#REF!,0)+IF(ISNUMBER(#REF!),#REF!,0)+IF(ISNUMBER(#REF!),#REF!,0)+IF(ISNUMBER(#REF!),#REF!,0)+IF(ISNUMBER(#REF!),#REF!,0)+IF(ISNUMBER(#REF!),#REF!,0)+IF(ISNUMBER(#REF!),#REF!,0)+IF(ISNUMBER(#REF!),#REF!,0)+IF(ISNUMBER(#REF!),#REF!,0)","v":0},{"$f":"IF(ISNUMBER(I4),I4,0)+IF(ISNUMBER(I5),I5,0)+IF(ISNUMBER(I6),I6,0)+IF(ISNUMBER(I7),I7,0)+IF(ISNUMBER(I8),I8,0)+IF(ISNUMBER(I9),I9,0)+IF(ISNUMBER(#REF!),#REF!,0)+IF(ISNUMBER(#REF!),#REF!,0)+IF(ISNUMBER(#REF!),#REF!,0)+IF(ISNUMBER(#REF!),#REF!,0)+IF(ISNUMBER(#REF!),#REF!,0)+IF(ISNUMBER(#REF!),#REF!,0)+IF(ISNUMBER(#REF!),#REF!,0)+IF(ISNUMBER(#REF!),#REF!,0)+IF(ISNUMBER(#REF!),#REF!,0)+IF(ISNUMBER(#REF!),#REF!,0)+IF(ISNUMBER(#REF!),#REF!,0)+IF(ISNUMBER(#REF!),#REF!,0)+IF(ISNUMBER(#REF!),#REF!,0)+IF(ISNUMBER(#REF!),#REF!,0)+IF(ISNUMBER(#REF!),#REF!,0)+IF(ISNUMBER(#REF!),#REF!,0)+IF(ISNUMBER(#REF!),#REF!,0)+IF(ISNUMBER(#REF!),#REF!,0)+IF(ISNUMBER(#REF!),#REF!,0)+IF(ISNUMBER(#REF!),#REF!,0)+IF(ISNUMBER(#REF!),#REF!,0)+IF(ISNUMBER(#REF!),#REF!,0)+IF(ISNUMBER(#REF!),#REF!,0)+IF(ISNUMBER(#REF!),#REF!,0)+IF(ISNUMBER(#REF!),#REF!,0)+IF(ISNUMBER(#REF!),#REF!,0)+IF(ISNUMBER(#REF!),#REF!,0)+IF(ISNUMBER(#REF!),#REF!,0)+IF(ISNUMBER(#REF!),#REF!,0)+IF(ISNUMBER(#REF!),#REF!,0)+IF(ISNUMBER(#REF!),#REF!,0)+IF(ISNUMBER(#REF!),#REF!,0)+IF(ISNUMBER(#REF!),#REF!,0)+IF(ISNUMBER(#REF!),#REF!,0)+IF(ISNUMBER(#REF!),#REF!,0)+IF(ISNUMBER(#REF!),#REF!,0)+IF(ISNUMBER(#REF!),#REF!,0)+IF(ISNUMBER(#REF!),#REF!,0)+IF(ISNUMBER(#REF!),#REF!,0)+IF(ISNUMBER(#REF!),#REF!,0)+IF(ISNUMBER(#REF!),#REF!,0)","v":0},{"$f":"IF(ISNUMBER(J4),J4,0)+IF(ISNUMBER(J5),J5,0)+IF(ISNUMBER(J6),J6,0)+IF(ISNUMBER(J7),J7,0)+IF(ISNUMBER(J8),J8,0)+IF(ISNUMBER(J9),J9,0)+IF(ISNUMBER(#REF!),#REF!,0)+IF(ISNUMBER(#REF!),#REF!,0)+IF(ISNUMBER(#REF!),#REF!,0)+IF(ISNUMBER(#REF!),#REF!,0)+IF(ISNUMBER(#REF!),#REF!,0)+IF(ISNUMBER(#REF!),#REF!,0)+IF(ISNUMBER(#REF!),#REF!,0)+IF(ISNUMBER(#REF!),#REF!,0)+IF(ISNUMBER(#REF!),#REF!,0)+IF(ISNUMBER(#REF!),#REF!,0)+IF(ISNUMBER(#REF!),#REF!,0)+IF(ISNUMBER(#REF!),#REF!,0)+IF(ISNUMBER(#REF!),#REF!,0)+IF(ISNUMBER(#REF!),#REF!,0)+IF(ISNUMBER(#REF!),#REF!,0)+IF(ISNUMBER(#REF!),#REF!,0)+IF(ISNUMBER(#REF!),#REF!,0)+IF(ISNUMBER(#REF!),#REF!,0)+IF(ISNUMBER(#REF!),#REF!,0)+IF(ISNUMBER(#REF!),#REF!,0)+IF(ISNUMBER(#REF!),#REF!,0)+IF(ISNUMBER(#REF!),#REF!,0)+IF(ISNUMBER(#REF!),#REF!,0)+IF(ISNUMBER(#REF!),#REF!,0)+IF(ISNUMBER(#REF!),#REF!,0)+IF(ISNUMBER(#REF!),#REF!,0)+IF(ISNUMBER(#REF!),#REF!,0)+IF(ISNUMBER(#REF!),#REF!,0)+IF(ISNUMBER(#REF!),#REF!,0)+IF(ISNUMBER(#REF!),#REF!,0)+IF(ISNUMBER(#REF!),#REF!,0)+IF(ISNUMBER(#REF!),#REF!,0)+IF(ISNUMBER(#REF!),#REF!,0)+IF(ISNUMBER(#REF!),#REF!,0)+IF(ISNUMBER(#REF!),#REF!,0)+IF(ISNUMBER(#REF!),#REF!,0)+IF(ISNUMBER(#REF!),#REF!,0)+IF(ISNUMBER(#REF!),#REF!,0)+IF(ISNUMBER(#REF!),#REF!,0)+IF(ISNUMBER(#REF!),#REF!,0)+IF(ISNUMBER(#REF!),#REF!,0)","v":0},{"$f":"IF(ISNUMBER(K4),K4,0)+IF(ISNUMBER(K5),K5,0)+IF(ISNUMBER(K6),K6,0)+IF(ISNUMBER(K7),K7,0)+IF(ISNUMBER(K8),K8,0)+IF(ISNUMBER(K9),K9,0)+IF(ISNUMBER(#REF!),#REF!,0)+IF(ISNUMBER(#REF!),#REF!,0)+IF(ISNUMBER(#REF!),#REF!,0)+IF(ISNUMBER(#REF!),#REF!,0)+IF(ISNUMBER(#REF!),#REF!,0)+IF(ISNUMBER(#REF!),#REF!,0)+IF(ISNUMBER(#REF!),#REF!,0)+IF(ISNUMBER(#REF!),#REF!,0)+IF(ISNUMBER(#REF!),#REF!,0)+IF(ISNUMBER(#REF!),#REF!,0)+IF(ISNUMBER(#REF!),#REF!,0)+IF(ISNUMBER(#REF!),#REF!,0)+IF(ISNUMBER(#REF!),#REF!,0)+IF(ISNUMBER(#REF!),#REF!,0)+IF(ISNUMBER(#REF!),#REF!,0)+IF(ISNUMBER(#REF!),#REF!,0)+IF(ISNUMBER(#REF!),#REF!,0)+IF(ISNUMBER(#REF!),#REF!,0)+IF(ISNUMBER(#REF!),#REF!,0)+IF(ISNUMBER(#REF!),#REF!,0)+IF(ISNUMBER(#REF!),#REF!,0)+IF(ISNUMBER(#REF!),#REF!,0)+IF(ISNUMBER(#REF!),#REF!,0)+IF(ISNUMBER(#REF!),#REF!,0)+IF(ISNUMBER(#REF!),#REF!,0)+IF(ISNUMBER(#REF!),#REF!,0)+IF(ISNUMBER(#REF!),#REF!,0)+IF(ISNUMBER(#REF!),#REF!,0)+IF(ISNUMBER(#REF!),#REF!,0)+IF(ISNUMBER(#REF!),#REF!,0)+IF(ISNUMBER(#REF!),#REF!,0)+IF(ISNUMBER(#REF!),#REF!,0)+IF(ISNUMBER(#REF!),#REF!,0)+IF(ISNUMBER(#REF!),#REF!,0)+IF(ISNUMBER(#REF!),#REF!,0)+IF(ISNUMBER(#REF!),#REF!,0)+IF(ISNUMBER(#REF!),#REF!,0)+IF(ISNUMBER(#REF!),#REF!,0)+IF(ISNUMBER(#REF!),#REF!,0)+IF(ISNUMBER(#REF!),#REF!,0)+IF(ISNUMBER(#REF!),#REF!,0)","v":0},{"$f":"IF(ISNUMBER(L4),L4,0)+IF(ISNUMBER(L5),L5,0)+IF(ISNUMBER(L6),L6,0)+IF(ISNUMBER(L7),L7,0)+IF(ISNUMBER(L8),L8,0)+IF(ISNUMBER(L9),L9,0)+IF(ISNUMBER(#REF!),#REF!,0)+IF(ISNUMBER(#REF!),#REF!,0)+IF(ISNUMBER(#REF!),#REF!,0)+IF(ISNUMBER(#REF!),#REF!,0)+IF(ISNUMBER(#REF!),#REF!,0)+IF(ISNUMBER(#REF!),#REF!,0)+IF(ISNUMBER(#REF!),#REF!,0)+IF(ISNUMBER(#REF!),#REF!,0)+IF(ISNUMBER(#REF!),#REF!,0)+IF(ISNUMBER(#REF!),#REF!,0)+IF(ISNUMBER(#REF!),#REF!,0)+IF(ISNUMBER(#REF!),#REF!,0)+IF(ISNUMBER(#REF!),#REF!,0)+IF(ISNUMBER(#REF!),#REF!,0)+IF(ISNUMBER(#REF!),#REF!,0)+IF(ISNUMBER(#REF!),#REF!,0)+IF(ISNUMBER(#REF!),#REF!,0)+IF(ISNUMBER(#REF!),#REF!,0)+IF(ISNUMBER(#REF!),#REF!,0)+IF(ISNUMBER(#REF!),#REF!,0)+IF(ISNUMBER(#REF!),#REF!,0)+IF(ISNUMBER(#REF!),#REF!,0)+IF(ISNUMBER(#REF!),#REF!,0)+IF(ISNUMBER(#REF!),#REF!,0)+IF(ISNUMBER(#REF!),#REF!,0)+IF(ISNUMBER(#REF!),#REF!,0)+IF(ISNUMBER(#REF!),#REF!,0)+IF(ISNUMBER(#REF!),#REF!,0)+IF(ISNUMBER(#REF!),#REF!,0)+IF(ISNUMBER(#REF!),#REF!,0)+IF(ISNUMBER(#REF!),#REF!,0)+IF(ISNUMBER(#REF!),#REF!,0)+IF(ISNUMBER(#REF!),#REF!,0)+IF(ISNUMBER(#REF!),#REF!,0)+IF(ISNUMBER(#REF!),#REF!,0)+IF(ISNUMBER(#REF!),#REF!,0)+IF(ISNUMBER(#REF!),#REF!,0)+IF(ISNUMBER(#REF!),#REF!,0)+IF(ISNUMBER(#REF!),#REF!,0)+IF(ISNUMBER(#REF!),#REF!,0)+IF(ISNUMBER(#REF!),#REF!,0)","v":0},{"$f":"IF(ISNUMBER(M4),M4,0)+IF(ISNUMBER(M5),M5,0)+IF(ISNUMBER(M6),M6,0)+IF(ISNUMBER(M7),M7,0)+IF(ISNUMBER(M8),M8,0)+IF(ISNUMBER(M9),M9,0)+IF(ISNUMBER(#REF!),#REF!,0)+IF(ISNUMBER(#REF!),#REF!,0)+IF(ISNUMBER(#REF!),#REF!,0)+IF(ISNUMBER(#REF!),#REF!,0)+IF(ISNUMBER(#REF!),#REF!,0)+IF(ISNUMBER(#REF!),#REF!,0)+IF(ISNUMBER(#REF!),#REF!,0)+IF(ISNUMBER(#REF!),#REF!,0)+IF(ISNUMBER(#REF!),#REF!,0)+IF(ISNUMBER(#REF!),#REF!,0)+IF(ISNUMBER(#REF!),#REF!,0)+IF(ISNUMBER(#REF!),#REF!,0)+IF(ISNUMBER(#REF!),#REF!,0)+IF(ISNUMBER(#REF!),#REF!,0)+IF(ISNUMBER(#REF!),#REF!,0)+IF(ISNUMBER(#REF!),#REF!,0)+IF(ISNUMBER(#REF!),#REF!,0)+IF(ISNUMBER(#REF!),#REF!,0)+IF(ISNUMBER(#REF!),#REF!,0)+IF(ISNUMBER(#REF!),#REF!,0)+IF(ISNUMBER(#REF!),#REF!,0)+IF(ISNUMBER(#REF!),#REF!,0)+IF(ISNUMBER(#REF!),#REF!,0)+IF(ISNUMBER(#REF!),#REF!,0)+IF(ISNUMBER(#REF!),#REF!,0)+IF(ISNUMBER(#REF!),#REF!,0)+IF(ISNUMBER(#REF!),#REF!,0)+IF(ISNUMBER(#REF!),#REF!,0)+IF(ISNUMBER(#REF!),#REF!,0)+IF(ISNUMBER(#REF!),#REF!,0)+IF(ISNUMBER(#REF!),#REF!,0)+IF(ISNUMBER(#REF!),#REF!,0)+IF(ISNUMBER(#REF!),#REF!,0)+IF(ISNUMBER(#REF!),#REF!,0)+IF(ISNUMBER(#REF!),#REF!,0)+IF(ISNUMBER(#REF!),#REF!,0)+IF(ISNUMBER(#REF!),#REF!,0)+IF(ISNUMBER(#REF!),#REF!,0)+IF(ISNUMBER(#REF!),#REF!,0)+IF(ISNUMBER(#REF!),#REF!,0)+IF(ISNUMBER(#REF!),#REF!,0)","v":0},{"$f":"IF(ISNUMBER(N4),N4,0)+IF(ISNUMBER(N5),N5,0)+IF(ISNUMBER(N6),N6,0)+IF(ISNUMBER(N7),N7,0)+IF(ISNUMBER(N8),N8,0)+IF(ISNUMBER(N9),N9,0)+IF(ISNUMBER(#REF!),#REF!,0)+IF(ISNUMBER(#REF!),#REF!,0)+IF(ISNUMBER(#REF!),#REF!,0)+IF(ISNUMBER(#REF!),#REF!,0)+IF(ISNUMBER(#REF!),#REF!,0)+IF(ISNUMBER(#REF!),#REF!,0)+IF(ISNUMBER(#REF!),#REF!,0)+IF(ISNUMBER(#REF!),#REF!,0)+IF(ISNUMBER(#REF!),#REF!,0)+IF(ISNUMBER(#REF!),#REF!,0)+IF(ISNUMBER(#REF!),#REF!,0)+IF(ISNUMBER(#REF!),#REF!,0)+IF(ISNUMBER(#REF!),#REF!,0)+IF(ISNUMBER(#REF!),#REF!,0)+IF(ISNUMBER(#REF!),#REF!,0)+IF(ISNUMBER(#REF!),#REF!,0)+IF(ISNUMBER(#REF!),#REF!,0)+IF(ISNUMBER(#REF!),#REF!,0)+IF(ISNUMBER(#REF!),#REF!,0)+IF(ISNUMBER(#REF!),#REF!,0)+IF(ISNUMBER(#REF!),#REF!,0)+IF(ISNUMBER(#REF!),#REF!,0)+IF(ISNUMBER(#REF!),#REF!,0)+IF(ISNUMBER(#REF!),#REF!,0)+IF(ISNUMBER(#REF!),#REF!,0)+IF(ISNUMBER(#REF!),#REF!,0)+IF(ISNUMBER(#REF!),#REF!,0)+IF(ISNUMBER(#REF!),#REF!,0)+IF(ISNUMBER(#REF!),#REF!,0)+IF(ISNUMBER(#REF!),#REF!,0)+IF(ISNUMBER(#REF!),#REF!,0)+IF(ISNUMBER(#REF!),#REF!,0)+IF(ISNUMBER(#REF!),#REF!,0)+IF(ISNUMBER(#REF!),#REF!,0)+IF(ISNUMBER(#REF!),#REF!,0)+IF(ISNUMBER(#REF!),#REF!,0)+IF(ISNUMBER(#REF!),#REF!,0)+IF(ISNUMBER(#REF!),#REF!,0)+IF(ISNUMBER(#REF!),#REF!,0)+IF(ISNUMBER(#REF!),#REF!,0)+IF(ISNUMBER(#REF!),#REF!,0)","v":0},{"$f":"IF(ISNUMBER(O4),O4,0)+IF(ISNUMBER(O5),O5,0)+IF(ISNUMBER(O6),O6,0)+IF(ISNUMBER(O7),O7,0)+IF(ISNUMBER(O8),O8,0)+IF(ISNUMBER(O9),O9,0)+IF(ISNUMBER(#REF!),#REF!,0)+IF(ISNUMBER(#REF!),#REF!,0)+IF(ISNUMBER(#REF!),#REF!,0)+IF(ISNUMBER(#REF!),#REF!,0)+IF(ISNUMBER(#REF!),#REF!,0)+IF(ISNUMBER(#REF!),#REF!,0)+IF(ISNUMBER(#REF!),#REF!,0)+IF(ISNUMBER(#REF!),#REF!,0)+IF(ISNUMBER(#REF!),#REF!,0)+IF(ISNUMBER(#REF!),#REF!,0)+IF(ISNUMBER(#REF!),#REF!,0)+IF(ISNUMBER(#REF!),#REF!,0)+IF(ISNUMBER(#REF!),#REF!,0)+IF(ISNUMBER(#REF!),#REF!,0)+IF(ISNUMBER(#REF!),#REF!,0)+IF(ISNUMBER(#REF!),#REF!,0)+IF(ISNUMBER(#REF!),#REF!,0)+IF(ISNUMBER(#REF!),#REF!,0)+IF(ISNUMBER(#REF!),#REF!,0)+IF(ISNUMBER(#REF!),#REF!,0)+IF(ISNUMBER(#REF!),#REF!,0)+IF(ISNUMBER(#REF!),#REF!,0)+IF(ISNUMBER(#REF!),#REF!,0)+IF(ISNUMBER(#REF!),#REF!,0)+IF(ISNUMBER(#REF!),#REF!,0)+IF(ISNUMBER(#REF!),#REF!,0)+IF(ISNUMBER(#REF!),#REF!,0)+IF(ISNUMBER(#REF!),#REF!,0)+IF(ISNUMBER(#REF!),#REF!,0)+IF(ISNUMBER(#REF!),#REF!,0)+IF(ISNUMBER(#REF!),#REF!,0)+IF(ISNUMBER(#REF!),#REF!,0)+IF(ISNUMBER(#REF!),#REF!,0)+IF(ISNUMBER(#REF!),#REF!,0)+IF(ISNUMBER(#REF!),#REF!,0)+IF(ISNUMBER(#REF!),#REF!,0)+IF(ISNUMBER(#REF!),#REF!,0)+IF(ISNUMBER(#REF!),#REF!,0)+IF(ISNUMBER(#REF!),#REF!,0)+IF(ISNUMBER(#REF!),#REF!,0)+IF(ISNUMBER(#REF!),#REF!,0)","v":0},{"$f":"IF(ISNUMBER(P4),P4,0)+IF(ISNUMBER(P5),P5,0)+IF(ISNUMBER(P6),P6,0)+IF(ISNUMBER(P7),P7,0)+IF(ISNUMBER(P8),P8,0)+IF(ISNUMBER(P9),P9,0)+IF(ISNUMBER(#REF!),#REF!,0)+IF(ISNUMBER(#REF!),#REF!,0)+IF(ISNUMBER(#REF!),#REF!,0)+IF(ISNUMBER(#REF!),#REF!,0)+IF(ISNUMBER(#REF!),#REF!,0)+IF(ISNUMBER(#REF!),#REF!,0)+IF(ISNUMBER(#REF!),#REF!,0)+IF(ISNUMBER(#REF!),#REF!,0)+IF(ISNUMBER(#REF!),#REF!,0)+IF(ISNUMBER(#REF!),#REF!,0)+IF(ISNUMBER(#REF!),#REF!,0)+IF(ISNUMBER(#REF!),#REF!,0)+IF(ISNUMBER(#REF!),#REF!,0)+IF(ISNUMBER(#REF!),#REF!,0)+IF(ISNUMBER(#REF!),#REF!,0)+IF(ISNUMBER(#REF!),#REF!,0)+IF(ISNUMBER(#REF!),#REF!,0)+IF(ISNUMBER(#REF!),#REF!,0)+IF(ISNUMBER(#REF!),#REF!,0)+IF(ISNUMBER(#REF!),#REF!,0)+IF(ISNUMBER(#REF!),#REF!,0)+IF(ISNUMBER(#REF!),#REF!,0)+IF(ISNUMBER(#REF!),#REF!,0)+IF(ISNUMBER(#REF!),#REF!,0)+IF(ISNUMBER(#REF!),#REF!,0)+IF(ISNUMBER(#REF!),#REF!,0)+IF(ISNUMBER(#REF!),#REF!,0)+IF(ISNUMBER(#REF!),#REF!,0)+IF(ISNUMBER(#REF!),#REF!,0)+IF(ISNUMBER(#REF!),#REF!,0)+IF(ISNUMBER(#REF!),#REF!,0)+IF(ISNUMBER(#REF!),#REF!,0)+IF(ISNUMBER(#REF!),#REF!,0)+IF(ISNUMBER(#REF!),#REF!,0)+IF(ISNUMBER(#REF!),#REF!,0)+IF(ISNUMBER(#REF!),#REF!,0)+IF(ISNUMBER(#REF!),#REF!,0)+IF(ISNUMBER(#REF!),#REF!,0)+IF(ISNUMBER(#REF!),#REF!,0)+IF(ISNUMBER(#REF!),#REF!,0)+IF(ISNUMBER(#REF!),#REF!,0)","v":0},{"$f":"IF(ISNUMBER(Q4),Q4,0)+IF(ISNUMBER(Q5),Q5,0)+IF(ISNUMBER(Q6),Q6,0)+IF(ISNUMBER(Q7),Q7,0)+IF(ISNUMBER(Q8),Q8,0)+IF(ISNUMBER(Q9),Q9,0)+IF(ISNUMBER(#REF!),#REF!,0)+IF(ISNUMBER(#REF!),#REF!,0)+IF(ISNUMBER(#REF!),#REF!,0)+IF(ISNUMBER(#REF!),#REF!,0)+IF(ISNUMBER(#REF!),#REF!,0)+IF(ISNUMBER(#REF!),#REF!,0)+IF(ISNUMBER(#REF!),#REF!,0)+IF(ISNUMBER(#REF!),#REF!,0)+IF(ISNUMBER(#REF!),#REF!,0)+IF(ISNUMBER(#REF!),#REF!,0)+IF(ISNUMBER(#REF!),#REF!,0)+IF(ISNUMBER(#REF!),#REF!,0)+IF(ISNUMBER(#REF!),#REF!,0)+IF(ISNUMBER(#REF!),#REF!,0)+IF(ISNUMBER(#REF!),#REF!,0)+IF(ISNUMBER(#REF!),#REF!,0)+IF(ISNUMBER(#REF!),#REF!,0)+IF(ISNUMBER(#REF!),#REF!,0)+IF(ISNUMBER(#REF!),#REF!,0)+IF(ISNUMBER(#REF!),#REF!,0)+IF(ISNUMBER(#REF!),#REF!,0)+IF(ISNUMBER(#REF!),#REF!,0)+IF(ISNUMBER(#REF!),#REF!,0)+IF(ISNUMBER(#REF!),#REF!,0)+IF(ISNUMBER(#REF!),#REF!,0)+IF(ISNUMBER(#REF!),#REF!,0)+IF(ISNUMBER(#REF!),#REF!,0)+IF(ISNUMBER(#REF!),#REF!,0)+IF(ISNUMBER(#REF!),#REF!,0)+IF(ISNUMBER(#REF!),#REF!,0)+IF(ISNUMBER(#REF!),#REF!,0)+IF(ISNUMBER(#REF!),#REF!,0)+IF(ISNUMBER(#REF!),#REF!,0)+IF(ISNUMBER(#REF!),#REF!,0)+IF(ISNUMBER(#REF!),#REF!,0)+IF(ISNUMBER(#REF!),#REF!,0)+IF(ISNUMBER(#REF!),#REF!,0)+IF(ISNUMBER(#REF!),#REF!,0)+IF(ISNUMBER(#REF!),#REF!,0)+IF(ISNUMBER(#REF!),#REF!,0)+IF(ISNUMBER(#REF!),#REF!,0)","v":0},{"$f":"IF(ISNUMBER(R4),R4,0)+IF(ISNUMBER(R5),R5,0)+IF(ISNUMBER(R6),R6,0)+IF(ISNUMBER(R7),R7,0)+IF(ISNUMBER(R8),R8,0)+IF(ISNUMBER(R9),R9,0)+IF(ISNUMBER(#REF!),#REF!,0)+IF(ISNUMBER(#REF!),#REF!,0)+IF(ISNUMBER(#REF!),#REF!,0)+IF(ISNUMBER(#REF!),#REF!,0)+IF(ISNUMBER(#REF!),#REF!,0)+IF(ISNUMBER(#REF!),#REF!,0)+IF(ISNUMBER(#REF!),#REF!,0)+IF(ISNUMBER(#REF!),#REF!,0)+IF(ISNUMBER(#REF!),#REF!,0)+IF(ISNUMBER(#REF!),#REF!,0)+IF(ISNUMBER(#REF!),#REF!,0)+IF(ISNUMBER(#REF!),#REF!,0)+IF(ISNUMBER(#REF!),#REF!,0)+IF(ISNUMBER(#REF!),#REF!,0)+IF(ISNUMBER(#REF!),#REF!,0)+IF(ISNUMBER(#REF!),#REF!,0)+IF(ISNUMBER(#REF!),#REF!,0)+IF(ISNUMBER(#REF!),#REF!,0)+IF(ISNUMBER(#REF!),#REF!,0)+IF(ISNUMBER(#REF!),#REF!,0)+IF(ISNUMBER(#REF!),#REF!,0)+IF(ISNUMBER(#REF!),#REF!,0)+IF(ISNUMBER(#REF!),#REF!,0)+IF(ISNUMBER(#REF!),#REF!,0)+IF(ISNUMBER(#REF!),#REF!,0)+IF(ISNUMBER(#REF!),#REF!,0)+IF(ISNUMBER(#REF!),#REF!,0)+IF(ISNUMBER(#REF!),#REF!,0)+IF(ISNUMBER(#REF!),#REF!,0)+IF(ISNUMBER(#REF!),#REF!,0)+IF(ISNUMBER(#REF!),#REF!,0)+IF(ISNUMBER(#REF!),#REF!,0)+IF(ISNUMBER(#REF!),#REF!,0)+IF(ISNUMBER(#REF!),#REF!,0)+IF(ISNUMBER(#REF!),#REF!,0)+IF(ISNUMBER(#REF!),#REF!,0)+IF(ISNUMBER(#REF!),#REF!,0)+IF(ISNUMBER(#REF!),#REF!,0)+IF(ISNUMBER(#REF!),#REF!,0)+IF(ISNUMBER(#REF!),#REF!,0)+IF(ISNUMBER(#REF!),#REF!,0)","v":0},{"$f":"IF(ISNUMBER(S4),S4,0)+IF(ISNUMBER(S5),S5,0)+IF(ISNUMBER(S6),S6,0)+IF(ISNUMBER(S7),S7,0)+IF(ISNUMBER(S8),S8,0)+IF(ISNUMBER(S9),S9,0)+IF(ISNUMBER(#REF!),#REF!,0)+IF(ISNUMBER(#REF!),#REF!,0)+IF(ISNUMBER(#REF!),#REF!,0)+IF(ISNUMBER(#REF!),#REF!,0)+IF(ISNUMBER(#REF!),#REF!,0)+IF(ISNUMBER(#REF!),#REF!,0)+IF(ISNUMBER(#REF!),#REF!,0)+IF(ISNUMBER(#REF!),#REF!,0)+IF(ISNUMBER(#REF!),#REF!,0)+IF(ISNUMBER(#REF!),#REF!,0)+IF(ISNUMBER(#REF!),#REF!,0)+IF(ISNUMBER(#REF!),#REF!,0)+IF(ISNUMBER(#REF!),#REF!,0)+IF(ISNUMBER(#REF!),#REF!,0)+IF(ISNUMBER(#REF!),#REF!,0)+IF(ISNUMBER(#REF!),#REF!,0)+IF(ISNUMBER(#REF!),#REF!,0)+IF(ISNUMBER(#REF!),#REF!,0)+IF(ISNUMBER(#REF!),#REF!,0)+IF(ISNUMBER(#REF!),#REF!,0)+IF(ISNUMBER(#REF!),#REF!,0)+IF(ISNUMBER(#REF!),#REF!,0)+IF(ISNUMBER(#REF!),#REF!,0)+IF(ISNUMBER(#REF!),#REF!,0)+IF(ISNUMBER(#REF!),#REF!,0)+IF(ISNUMBER(#REF!),#REF!,0)+IF(ISNUMBER(#REF!),#REF!,0)+IF(ISNUMBER(#REF!),#REF!,0)+IF(ISNUMBER(#REF!),#REF!,0)+IF(ISNUMBER(#REF!),#REF!,0)+IF(ISNUMBER(#REF!),#REF!,0)+IF(ISNUMBER(#REF!),#REF!,0)+IF(ISNUMBER(#REF!),#REF!,0)+IF(ISNUMBER(#REF!),#REF!,0)+IF(ISNUMBER(#REF!),#REF!,0)+IF(ISNUMBER(#REF!),#REF!,0)+IF(ISNUMBER(#REF!),#REF!,0)+IF(ISNUMBER(#REF!),#REF!,0)+IF(ISNUMBER(#REF!),#REF!,0)+IF(ISNUMBER(#REF!),#REF!,0)+IF(ISNUMBER(#REF!),#REF!,0)","v":0},{"$f":"S11/E11","v":{"$error":"#DIV/0!"}}]
["注：“费用/公里”处公里值采用管养里程（管养里程=设计里程+0.5×匝道里程）",{"$nulls":17},{"$f":"SUM(G12:R12)","v":0}]

{"sheet":"Sheet2","index":1,"n_rows":0,"n_cols":0,"rows_kept":0,"cut":false,"hidden":false,"merged":[]}

{"sheet":"Sheet3","index":2,"n_rows":0,"n_cols":0,"rows_kept":0,"cut":false,"hidden":false,"merged":[]}